Cogmind - Beta 13 @@@ ROGUE MODE // 2024.04.18 @ 18:55:57 Player: TheBermanGrit Result: Self-destructed Performance ------------- Evolutions (1) 500 Regions Visited (5) 1000 Robots Destroyed (23) 115 Value Destroyed (580) 580 Prototype IDs (0) 0 Alien Tech Used (0) 0 Bonus (0) 0 TOTAL SCORE: 2195 Bonus ------- None Cogmind --------- Core Integrity 291/400 Matter 300/300 Energy 265/265 System Corruption 0% Temperature Cool (0) Movement Walking (120) Location -9/Exiles Parts ------- > --- POWER (1) -------- Improved Ion Engine > --- PROPULSION (3) --- Improved Aluminum Leg Improved Aluminum Leg Improved Aluminum Leg > --- UTILITY (3) ------ Improved Heat Sink Medium Storage Unit Structural Scanner > --- WEAPON (2) ------- Particle Gun Beam Cannon > --- INVENTORY (10) --- Improved Ion Engine Improved Ion Engine Reinforced Deuterium Engine Improved Heat Sink Hardened Light Armor Plating Particle Gun Heavy Assault Rifle Mining Laser Hammer Stasis Trap (100%) Peak State ------------ > --- POWER ------------ Improved Ion Engine > --- PROPULSION ------- Improved Aluminum Leg Improved Aluminum Leg Improved Aluminum Leg > --- UTILITY ---------- Improved Heat Sink Medium Storage Unit Structural Scanner > --- WEAPON ----------- Particle Gun Beam Cannon > --- INVENTORY -------- Improved Ion Engine Improved Ion Engine Reinforced Deuterium Engine Improved Heat Sink Hardened Light Armor Plating Particle Gun Heavy Assault Rifle Mining Laser Hammer Stasis Trap [Rating: 18] Favorites ----------- Power Light Ion Engine Engine Light Ion Engine Propulsion Light Treads Treads Light Treads Leg Improved Aluminum Leg Utility Improved Heat Sink Device Improved Heat Sink Storage Medium Storage Unit Weapon Light Assault Rifle Energy Gun Particle Gun Energy Cannon Beam Cannon Ballistic Gun Light Assault Rifle Impact Weapon Hammer Build | -11 -10 -10 -9 -9 -9 ------- Run | Yrd Mat Min Mat Min Exi Slots Evolved 2 | . . . 2 . . Power . | . . . . . . Propulsion 1 | . . . 1 . . Utility 1 | . . . 1 . . Weapon . | . . . . . . Parts Attached 36 | 6 7 6 17 . . Power 4 | 1 . 1 2 . . Engine 4 | 1 . 1 2 . . Core . | . . . . . . Reactor . | . . . . . . Propulsion 9 | 2 1 1 5 . . Treads 6 | 2 1 1 2 . . Leg 3 | . . . 3 . . Wheel . | . . . . . . Hover . | . . . . . . Flight . | . . . . . . Utility 10 | 1 5 . 4 . . Device 7 | . 3 . 4 . . Storage 3 | 1 2 . . . . Processor . | . . . . . . Hackware . | . . . . . . Protection . | . . . . . . Artifact . | . . . . . . Weapon 13 | 2 1 4 6 . . Energy Gun 3 | 1 . . 2 . . Energy Cannon 1 | . . . 1 . . Ballistic Gun 7 | 1 . 3 3 . . Ballistic Cannon . | . . . . . . Launcher . | . . . . . . Special Weapon . | . . . . . . Impact Weapon 2 | . 1 1 . . . Slashing Weapon . | . . . . . . Piercing Weapon . | . . . . . . Special Melee Weapon . | . . . . . . Unidentified Prototypes . | . . . . . . Corrupted Parts 1 | . 1 . . . . System Corruption 1 | . 1 . . . . Parts Lost 7 | . 1 1 5 . . Power 1 | . . . 1 . . Propulsion 4 | . . 1 3 . . Utility 1 | . . . 1 . . Weapon 1 | . 1 . . . . Highest Loss Streak 3 | . 1 1 3 . . To Critical Strikes . | . . . . . . Average Slot Usage (%) 93 | . 94 99 87 100 100 Engine 12 | . 14 14 10 11 11 Treads 19 | . 28 27 14 . . Leg 7 | . . . 9 33 33 Device 16 | . 11 14 20 22 22 Storage 13 | . 15 14 11 11 11 Energy Gun 7 | . 9 . 9 11 11 Energy Cannon 3 | . . . 5 11 11 Ballistic Gun 10 | . 14 20 6 . . Impact Weapon 2 | . . 7 . . . Naked Turns . | . . . . . . Heaviest Build 91 | 11 91 17 25 25 25 Greatest Support 60 | 40 40 40 60 39 39 Greatest Overweight (x) 7 | . 2 . 7 . . Average Overweight (x) . | . . . . . . Largest Inventory Capacity 25 | 8 25 10 10 10 10 Average Capacity 12 | 7 18 10 10 10 10 Most Carried 10 | 1 10 10 10 10 10 Average Carried 7 | . 5 9 9 10 10 Final Capacity 10 | 8 10 10 10 10 10 Final Carried 10 | 1 10 10 10 10 10 Class Distribution -------------------- 62% | Mutant 37% | Scavenger-Mutant Dominant Class ---------------- Mutant | -10/Materials Scavenger-Mutant | -10/Mines Scavenger-Mutant | -9/Materials Mutant | -9/Mines Mutant | -9/Exiles Resources | -11 -10 -10 -9 -9 -9 ----------- Run | Yrd Mat Min Mat Min Exi Matter Collected 601 | 215 123 44 219 . . Remotely . | . . . . . . Salvage Created 843 | . 415 57 270 101 . Parts 45 | . 20 10 10 5 . Haulers Intercepted 1 | . 1 . . . . Recyclers Shooed 2 | . 2 . . . . Parts Field Recycled . | . . . . . . Retrieved Matter . | . . . . . . Parts Self-Destructed . | . . . . . . Prevented . | . . . . . . Kills | -11 -10 -10 -9 -9 -9 ------- Run | Yrd Mat Min Mat Min Exi Combat Hostiles Destroyed 21 | . 6 5 8 2 . Melee 3 | . . 3 . . . Guns 15 | . 6 2 7 . . Cannons 3 | . . . 1 2 . Classes Destroyed 5 | . 3 1 1 . . Hauler 1 | . 1 . . . . Recycler 1 | . 1 . . . . Swarmer 9 | . . 5 4 . . Grunt 10 | . 6 . 2 2 . Sentry 2 | . . . 2 . . Best Kill Streak 3 | . 3 3 2 2 . Combat Bots Only 3 | . 2 3 2 2 . Max Kills in Single Turn 1 | . 1 1 1 1 . Gunslinging . | . . . . . . Exploded . | . . . . . . Melee 1 | . . 1 . . . Uniques/NPCs Destroyed . | . . . . . . Combat | -11 -10 -10 -9 -9 -9 -------- Run | Yrd Mat Min Mat Min Exi Hostile Shots Fired 171 | . 29 56 82 4 . Missed 39 | . 7 8 22 2 . Damage Taken 1247 | . 272 399 556 20 . Core 232 | . 21 102 99 10 . Absorbed by Shields . | . . . . . . Core Remaining (%) 75 | 100 . 50 . . . Volleys Fired 75 | . 29 8 33 5 . Largest 2 | . 2 2 2 2 . Hottest 125 | . 60 40 125 125 . Shots Fired 138 | . 51 14 65 8 . Gun 117 | . 51 14 49 3 . Cannon 21 | . . . 16 5 . Launcher . | . . . . . . Special . | . . . . . . Kinetic 77 | . 29 14 34 . . Thermal 39 | . . . 31 8 . Explosive . | . . . . . . Electromagnetic 22 | . 22 . . . . Robot Hit Streak 14 | . 11 6 14 3 . Robot Miss Streak 3 | . 2 1 3 2 . Penetration Max . | . . . . . . Secondary Targets 1 | . 1 . . . . Max Gunslinging Chain 1 | . 1 . . . . Shots Hit Robots 99 | . 40 16 38 5 . Core Hits 40 | . 19 5 13 3 . Critical Kills . | . . . . . . Critical Parts Destroyed 2 | . . 2 . . . Critical Strikes 4 | . . 2 2 . . Burn 2 | . . . 2 . . Smash 2 | . . 2 . . . Melee Attacks 9 | . . 9 . . . Impact 9 | . . 9 . . . Slashing . | . . . . . . Piercing . | . . . . . . Sneak Attacks 1 | . . 1 . . . Combat Hostiles 1 | . . 1 . . . Follow-up Attacks . | . . . . . . Damage Inflicted 1261 | . 415 273 492 81 . Guns 842 | . 415 82 316 29 . Cannons 228 | . . . 176 52 . Explosions . | . . . . . . Melee 189 | . . 189 . . . Ramming 2 | . . 2 . . . Kinetic 374 | . 165 82 127 . . Thermal 446 | . . . 365 81 . Explosive . | . . . . . . Electromagnetic 250 | . 250 . . . . Impact 189 | . . 189 . . . Slashing . | . . . . . . Piercing . | . . . . . . Highest Corruption 1 | . 1 1 . . . Average Corruption 1 | . 1 1 . . . Corruption Purged . | . . . . . . Corruption Blocked . | . . . . . . Effects 1 | . . 1 . . . Data Loss (major) 1 | . . 1 . . . Overload Shots . | . . . . . . Overflow Damage 92 | . . 92 . . . Projectiles . | . . . . . . Explosions . | . . . . . . Melee 92 | . . 92 . . . Knockbacks 1 | . . 1 . . . Impact 1 | . . 1 . . . Kinetic . | . . . . . . Secondary . | . . . . . . Self-Inflicted Damage . | . . . . . . Shots . | . . . . . . Rammed 1 | . . 1 . . . Targets Rammed 1 | . . 1 . . . Kicked . | . . . . . . Crushed . | . . . . . . Highest Temperature 156 | . 64 . 156 57 . Average Temperature 42 | . 19 . 57 29 . Received Heat Transfer 231 | . 153 9 57 12 . Siege Activations . | . . . . . . Robots Corrupted . | . . . . . . Combat Hostiles . | . . . . . . Parts Fried 1 | . . 1 . . . Impact Corruptions 3 | . . 3 . . . Robots Melted . | . . . . . . Combat Hostiles . | . . . . . . Parts Melted 6 | . . . 6 . . Heat Transferred 1147 | . . . 962 185 . Parts Sabotaged . | . . . . . . Parts Stolen . | . . . . . . Parts Stripped . | . . . . . . Power Chain Reactions . | . . . . . . Alert | -11 -10 -10 -9 -9 -9 ------- Run | Yrd Mat Min Mat Min Exi Peak Influence 187 | . 187 111 183 63 . Initial 42 | . . . 42 13 . Average 79 | . 82 84 100 34 . Maximum Alert Level . | . . . . . . Low Security (%) 100 | 100 100 100 100 100 . Level 1 . | . . . . . . Level 2 . | . . . . . . Level 3 . | . . . . . . Level 4 . | . . . . . . Level 5 . | . . . . . . High Security . | . . . . . . Max Security . | . . . . . . Squads Dispatched . | . . . . . . Investigation . | . . . . . . Extermination . | . . . . . . Reinforcement . | . . . . . . Assault . | . . . . . . Garrison . | . . . . . . Intercept . | . . . . . . Searches Triggered . | . . . . . . Construction Impeded . | . . . . . . Haulers Reinforced . | . . . . . . Active Scanning Responses . | . . . . . . Cargo Convoy Interrupts . | . . . . . . Stealth | -11 -10 -10 -9 -9 -9 --------- Run | Yrd Mat Min Mat Min Exi Distress Signals 2 | . 1 . 1 . . Communications Jammed . | . . . . . . Distress Signals . | . . . . . . Times Spotted 31 | . 12 8 9 2 . Peak Tracking Total 4 | . 4 3 4 1 . Tactical Retreats 1 | . 1 . . . . Traps | -11 -10 -10 -9 -9 -9 ------- Run | Yrd Mat Min Mat Min Exi Traps Triggered 1 | . . . 1 . . Indirectly . | . . . . . . Trap Hack Attempts . | . . . . . . Triggered . | . . . . . . Disarmed . | . . . . . . Reprogrammed . | . . . . . . Reused . | . . . . . . Traps Extracted . | . . . . . . Installed . | . . . . . . Triggered . | . . . . . . Most Traps Carried 1 | . . 1 1 1 1 Machines | -11 -10 -10 -9 -9 -9 ---------- Run | Yrd Mat Min Mat Min Exi Machines Disabled . | . . . . . . Max in Single Turn . | . . . . . . Machines Repaired . | . . . . . . Machines Dismantled . | . . . . . . Machines Sabotaged . | . . . . . . Overloaded Fab Kills . | . . . . . . Hacking | -11 -10 -10 -9 -9 -9 --------- Run | Yrd Mat Min Mat Min Exi Machines Accessed 3 | . . . 3 . . Terminals 2 | . . . 2 . . Fabricators . | . . . . . . Repair Stations 1 | . . . 1 . . Recycling Units . | . . . . . . Scanalyzers . | . . . . . . Garrison Access . | . . . . . . Total Hacks 4 | . . . 4 . . Successful 2 | . . . 2 . . Failed 2 | . . . 2 . . Catastrophic . | . . . . . . Database Lockouts . | . . . . . . Manual . | . . . . . . Terminals 3 | . . . 3 . . Fabricators . | . . . . . . Repair Stations 1 | . . . 1 . . Recycling Units . | . . . . . . Scanalyzers . | . . . . . . Garrison Access . | . . . . . . Terminal Hacks 2 | . . . 2 . . Robot Analysis 1 | . . . 1 . . Hauler Manifests 1 | . . . 1 . . Fabricator Hacks . | . . . . . . Repair Station Hacks . | . . . . . . Recycling Unit Hacks . | . . . . . . Scanalyzer . | . . . . . . Garrison Access Hacks . | . . . . . . Unauthorized Hacks . | . . . . . . Terminals . | . . . . . . Fabricators . | . . . . . . Repair Stations . | . . . . . . Recycling Units . | . . . . . . Scanalyzers . | . . . . . . Garrison Access . | . . . . . . Data Cores Recovered . | . . . . . . Used . | . . . . . . Hacking Detections 2 | . . . 2 . . Full Trace Events . | . . . . . . Feedback Events . | . . . . . . Feedback Blocked . | . . . . . . Robot Schematics Acquired . | . . . . . . Robots Built . | . . . . . . Authchips . | . . . . . . Time . | . . . . . . Total Robot Build Rating . | . . . . . . Part Schematics Acquired . | . . . . . . Parts Built . | . . . . . . Authchips . | . . . . . . Time . | . . . . . . Total Part Build Rating . | . . . . . . Parts Repaired . | . . . . . . Time . | . . . . . . Parts Recycled . | . . . . . . Recycled Matter . | . . . . . . Retrieved Matter . | . . . . . . Retrieved Components . | . . . . . . Parts Scanalyzed . | . . . . . . Part Schematics Acquired . | . . . . . . Parts Damaged . | . . . . . . Bothacking | -11 -10 -10 -9 -9 -9 ------------ Run | Yrd Mat Min Mat Min Exi Used RIF Installer . | . . . . . . Robots Hacked . | . . . . . . Non-combat . | . . . . . . Combat . | . . . . . . Robot Hacks Applied . | . . . . . . Relay Couplers Released . | . . . . . . Fabnet Peak Effective % . | . . . . . . Robots Rewired . | . . . . . . Allies Hacked . | . . . . . . Hacks Repelled . | . . . . . . Allies | -11 -10 -10 -9 -9 -9 -------- Run | Yrd Mat Min Mat Min Exi Total Allies . | . . . . . . Largest Group . | . . . . . . Highest-Rated Group . | . . . . . . Highest-Rated Ally . | . . . . . . Total Orders . | . . . . . . Ally Attacks . | . . . . . . Total Damage . | . . . . . . Kills . | . . . . . . Allies Corrupted . | . . . . . . Allies Melted . | . . . . . . Intel | -11 -10 -10 -9 -9 -9 ------- Run | Yrd Mat Min Mat Min Exi Robot Analysis Total 1 | . . . 1 . . Derelict Logs Recovered 1 | . . . . 1 . Drone Launches . | . . . . . . Drone Recoveries . | . . . . . . Exploration | -11 -10 -10 -9 -9 -9 ------------- Run | Yrd Mat Min Mat Min Exi Turns Passed 1329 | 72 427 242 445 123 20 Spaces Moved 624 | 40 153 114 209 92 16 Core 7 | 1 . . 6 . . Treads 426 | 39 153 114 120 . . Legs 191 | . . . 83 92 16 Wheels . | . . . . . . Hover . | . . . . . . Flight . | . . . . . . Fastest Speed 50 | 50 160 160 120 120 120 Average Speed 163 | 157 215 160 151 120 120 Slowest Speed 400 | 160 320 160 400 120 120 Overloaded Moves . | . . . . . . Propulsion Burnouts . | . . . . . . Robots Hopped . | . . . . . . Cave-ins Triggered . | . . . . . . Exploration Rate (%) 19 | 3 33 24 21 31 7 Regions Visited 5 Branch Regions 3 Pre-discovered Areas . | . . . . . . Known Exits Taken . | . . . . . . Unknown Exits Taken 5 | 1 1 1 1 1 . Scrap Searched . | . . . . . . Spaces Dug 1 | . . 1 . . . Terrain Destroyed 1 | . . 1 . . . Melee 1 | . . 1 . . . Projectile . | . . . . . . AOE . | . . . . . . Terrain Rammed . | . . . . . . Walls Destroyed . | . . . . . . Machines Disabled . | . . . . . . Actions | -11 -10 -10 -9 -9 -9 --------- Run | Yrd Mat Min Mat Min Exi Total 789 | 46 205 146 278 96 18 Wait 7 | . . 4 3 . . Move 619 | 39 152 113 208 91 16 Hop . | . . . . . . Pick Up 23 | 1 12 2 7 . 1 Fast Attach 18 | 6 2 . 10 . . Attach 6 | . 2 1 3 . . Detach 1 | . 1 . . . . Swap 12 | . 3 5 4 . . Drop 18 | . 4 3 10 . 1 Fire 75 | . 29 8 33 5 . Melee 9 | . . 9 . . . Ram . | . . . . . . Kick . | . . . . . . Crush 1 | . . 1 . . . Escape Stasis . | . . . . . . Rewire . | . . . . . . Trap . | . . . . . . Miscellaneous . | . . . . . . Route ------- -11/Scrapyard -10/Materials -10/Mines -9/Materials -9/Mines -9/Exiles History --------- Turn | Location | Event 36 | -11/Scrapyard | Discovered new exit (range 15) 73 | -11/Scrapyard | Entered Materials 283 | -10/Materials | Discovered new exit (range 14) 317 | -10/Materials | Build established: Mutant 500 | -10/Materials | Entered Mines 693 | -10/Mines | Found a hidden stash of uninstalled traps 734 | -10/Mines | Discovered new exit (range 7) 742 | -10/Mines | Entered Materials 742 | -9/Materials | Evolved 2 slots: Propulsion x1, Utility x1 854 | -9/Materials | Build established: Scavenger-Mutant 1053 | -9/Materials | Lost 3 parts (2n1u) 1166 | -9/Materials | Discovered new exit (range 15) 1187 | -9/Materials | Entered Mines 1193 | -9/Mines | Learned 4 Materials zone layouts 1304 | -9/Mines | Deemed a non-threat by the Exiles lab entrance 1304 | -9/Mines | Discovered new exit (range 6) 1310 | -9/Mines | Entered Exiles 1330 | -9/Exiles | Self-destructed Last Messages --------------- 01174_ K-01 Serf cleans the Processing Tank. 01179_ K-01 Serf collects debris. 01179_ T-07 Excavator is excavating. LOCATION=UNKNOWN GOAL=ESCAPE Something is scanning the area. 01193_ Acquired derelict log, extracted data. Data stored: Materials zone layouts (x4). 01254_ G-47 Trooper destroyed. 01260_ G-34 Mercenary destroyed. 01287_ R-06 Scavenger collects Aluminum Leg. 01291_ R-06 Scavenger collects Imp. Heat Sink. 01294_ R-06 Scavenger collects Particle Gun. 01304_ "No threat detected, you may enter." 01304_ EXIT=FOUND LOCATION=UNKNOWN GOAL=ESCAPE 01328_ Dropped Imp. Ion Engine. 01328_ Acquired Rigged Rnf. Deuterium Engine. Map ----- +----------------------------------------------------+ | ????????????????????????????????????????????????? | | ????????????????????????????????????????????????? | | ????????????????????????????????????????????????? | | ????????????????????????????????????????????????? | | ????????????????????????????????????????????????? | | ????????????????????????????????????????????????? | | ????????????????????????????????????????????????? | | ????????????????????????????????????????????????? | | ????????????????????????????????????????????????? | | ????????????????????????????????????????????????? | | ?????????????????????????## ????????????????????? | | ???????????????????????#### ##????????????????? | | ???????????????????????### ##????????????????? | | ???????????????????????## #????????????????? | | ??????????????????????### ??????????????????? | | ?????????????????????#### ??????????????????? | | ?????????????????????### ???????????????????? | | ???????????????????#### ???????????????????? | | ??????????????######### ????????????????????? | | ???????????########## #???????????????????? | | ??????????? #""""## ###??????????????????? | | ?????????? * ###??????????????????? | | ?????????? * ###?????????????????? | | ??????????? #####???????????????? | | ??????????????## ######?????????????? | | ??????????????##### @ #####????????????? | | ?????????????????###### ###????????????? | | ?????????????????######## ##????????????? | | ?????????????????????###### ##????????????? | | ???????????????????????###### ###???????????? | | ?????????????????????????###" #####?????????? | | ??????????????????????????##### #####????????? | | ??????????????????????????##### #####??????? | | ?????????????????????????????### ####??????? | | ?????????????????????????????##### ##??????? | | ??????????????????????????????#### ###??????? | | ????????????????????????????????### ####??????? | | ????????????????????????????????#########???????? | | ?????????????????????????????????#######????????? | | ????????????????????????????????????????????????? | | ????????????????????????????????????????????????? | | ????????????????????????????????????????????????? | | ????????????????????????????????????????????????? | | ????????????????????????????????????????????????? | | ????????????????????????????????????????????????? | | ????????????????????????????????????????????????? | | ????????????????????????????????????????????????? | | ????????????????????????????????????????????????? | | ????????????????????????????????????????????????? | | ????????????????????????????????????????????????? | +----------------------------------------------------+ Best States ------------- Heat Dissipation 42 Energy Generation 12 Energy Capacity 265 Matter Stores 300 Matter Capacity 300 Sight Range 16 Robot Scan Range 14 Terrain Scan Density 10 Evasion (%) 55 Recoil Reduction 3 Item Schematics ----------------- None Robot Schematics ------------------ None Fabricated ------------ Nothing Alien Tech Used ----------------- None Achievements -------------- None Challenges ------------ None Game ------ Seed BarrageSwarmMatrix Manual? 0 Play Time 00:17:15 Cumulative 13.2 hours Start 2024.04.18 @ 18:37:35 End 2024.04.18 @ 18:55:57 Sessions 1 Manual Loads 0 Difficulty Rogue Special Mode None Game No. 25 Rogue 25 Adventurer 0 Explorer 0 Win Type - Total 0 Types 0/0/0/0/0/0/0/0/0 Lore% 17 Gallery% 17 Achievement% 14 Wizard Run 0 Options --------- Layout 1 ASCII 0 Keyboard 0 Movement Arrows Keybinds 0 Fullscreen 1 Font 24/Smallcaps Map View 50x35 Zoom Use 0% Tactical HUD 1 Map Filters NONE Filters NONE Steam 1 RUN: 91451270-1530-4fe4-a5a4-85b5a6d78843